bitfinex-derivatives/quotes_ETHF0:USTF0_20210405
["timestamp","ask_amount","ask_price","bid_price","bid_amount"]
[1617663014161,0.8862143,2122.5,2122.4,8.65695]
[1617663015162,1.10776788,2122.7,2122.4,8.65695]
[1617663015362,1.10776788,2122.7,2122.4,5.75]
[1617663015563,2.90695,2122.5,2122.4,5.75]
[1617663015765,2.90695,2122.5,2122.3,2.90695]
[1617663016162,2.90695,2122.5,2122.4,5.81]
[1617663016365,4.84856153,2122.5,2122.4,5.81]
[1617663016766,4.84856153,2122.5,2120.9,5.65]
[1617663016964,4.84856153,2122.5,2121.0,2.0]
[1617663017164,24.3,2122.4,2121.0,2.0]
[1617663017364,26.9736,2122.4,2121.0,2.0]
[1617663017564,0.66487992,2121.5,2121.3,2.90695]
[1617663017763,3.35047992,2121.5,2121.1,5.73]
[1617663017966,2.6856,2121.5,2121.4,0.11]
[1617663018164,2.6856,2121.5,2121.0,5.92]
[1617663018366,3.79390217,2121.5,2121.2,5.68]
[1617663018563,3.79390217,2121.5,2121.4,0.05]
[1617663018763,3.79390217,2121.5,2121.1,5.89]
[1617663018963,3.79390217,2121.5,2121.3,5.73]
[1617663019164,1.10832755,2121.4,2121.0,4.97]
[1617663019363,2.05752755,2121.4,2121.2,0.32]
[1617663019565,2.90695,2121.3,2121.2,0.32]
[1617663019763,3.79359724,2121.3,2121.1,4.8]
[1617663019963,3.79359724,2121.3,2121.2,0.39]
[1617663020365,3.79359724,2121.3,2120.9,2.90695]
[1617663020566,3.79359724,2121.3,2121.2,5.76]
[1617663020967,0.66499618,2121.1,2120.9,2.90695]
[1617663021365,3.79359724,2121.3,2121.0,5.88]
[1617663021564,0.88666783,2121.2,2121.0,5.88]
[1617663022365,0.88666783,2121.2,2120.4,5.8]
[1617663022767,0.88643336,2121.1,2119.2,30.0]
[1617663022968,0.88643336,2121.1,2120.7,66.0088]
[1617663023167,0.66506138,2121.0,2120.7,98.795]
[1617663023570,6.138e-05,2121.0,2120.9,2.90695]
[1617663023768,0.88653974,2121.7,2121.0,2.0]
[1617663023970,0.88653974,2121.7,2121.0,7.69]
[1617663024169,3.79337548,2122.0,2121.4,59.8118]
[1617663024369,3.79337548,2122.0,2121.4,61.9178]
[1617663024570,0.88641753,2122.1,2121.5,5.8]
[1617663024771,0.88639781,2122.2,2121.5,5.8]
[1617663025175,0.88639781,2122.2,2121.5,35.8]
[1617663025577,2.30202774,2122.3,2122.1,2.90695]
[1617663025777,0.88635564,2122.3,2122.1,4.82305]
[1617663025978,0.88635564,2122.3,2122.2,5.67]
[1617663026679,2.90695,2122.6,2122.2,5.67]
[1617663026680,4.01484001,2122.6,2122.2,5.67]
[1617663026881,0.88626608,2122.5,2122.2,5.67]
[1617663027078,0.88626608,2122.5,2122.2,35.67]
[1617663027279,0.88623278,2122.6,2122.2,35.67]
[1617663027682,0.88621942,2122.7,2122.6,2.0]
[1617663027880,1.10777907,2122.8,2122.6,4.318]
[1617663028081,1.10777907,2122.8,2122.6,8.238]
[1617663028282,0.88620699,2122.7,2122.6,8.238]
[1617663029281,1.10781183,2122.8,2122.6,8.238]
[1617663029681,2.90695,2122.7,2122.6,8.238]
[1617663030081,4.01474918,2122.7,2122.6,8.238]
[1617663030283,4.01474918,2122.7,2122.6,5.92]
[1617663030682,2.90695,2122.7,2122.6,5.92]
[1617663031383,4.01477818,2122.7,2122.6,5.92]
[1617663032083,2.90695,2122.7,2122.6,5.92]
[1617663032783,4.01479069,2122.7,2122.6,5.92]
[1617663033483,3.79278154,2122.7,2122.6,5.92]
[1617663033885,4.01432063,2122.7,2121.9,2.90695]
[1617663034284,2.90695,2122.7,2122.6,0.59]
[1617663034683,2.90695,2122.7,2121.9,2.90695]
[1617663034884,2.90695,2122.7,2122.6,5.88]
[1617663035085,4.01433401,2122.7,2122.6,5.88]
[1617663035283,4.01433401,2122.7,2122.0,5.93]
[1617663035486,4.01433401,2122.7,2122.6,5.8]
[1617663035884,4.01433401,2122.7,2122.0,5.75]
[1617663036084,4.01433401,2122.7,2122.6,5.73]
[1617663036488,2.90695,2122.7,2122.0,5.87]
[1617663036685,2.90695,2122.7,2122.6,5.77]
[1617663037086,2.90695,2122.7,2122.1,2.85]
[1617663037286,2.90695,2122.7,2122.6,5.3]
[1617663037687,2.90695,2122.7,2122.4,2.90695]
[1617663037886,2.90695,2122.7,2122.6,5.79]
[1617663038287,2.90695,2122.7,2122.5,0.09]
[1617663038487,2.90695,2122.7,2122.6,5.77]
[1617663038686,4.01431893,2122.7,2122.6,5.77]
[1617663038886,4.01431893,2122.7,2121.5,65.6109]
[1617663039088,4.95841893,2122.7,2122.6,5.8]
[1617663039286,34.01431893,2122.7,2122.6,5.8]
[1617663039486,34.01431893,2122.7,2121.6,5.93]
[1617663039487,34.84783474,2122.7,2121.6,5.93]
[1617663039686,31.94088474,2122.7,2122.5,5.82]
[1617663039887,32.27314,2122.7,2122.6,4.3778]
[1617663040086,32.27314,2122.7,2121.6,5.83]
[1617663040288,32.27314,2122.7,2122.6,5.69]
[1617663040489,32.27314,2122.7,2122.6,1.3214]
[1617663040689,32.77181531,2122.7,2121.7,5.82]
[1617663040888,32.77181531,2122.7,2120.7,3.59]
[1617663041088,2.77181531,2122.7,2122.6,5.45]
[1617663041292,2.77181531,2122.7,2120.8,3.21]
[1617663041489,32.77181531,2122.7,2120.9,2.0]
[1617663041692,34.6319381,2122.7,2122.6,5.79]
[1617663041890,34.6319381,2122.7,2121.3,2.90695]
[1617663042291,34.6319381,2122.7,2122.6,0.22]
[1617663042494,32.77181531,2122.7,2121.3,2.90695]
[1617663042892,34.18724348,2122.7,2122.6,5.74]
[1617663043092,34.18724348,2122.7,2121.4,5.83]
[1617663043293,0.88582793,2122.1,2121.3,2.90695]
[1617663043495,0.88582793,2122.1,2121.6,5.86]
[1617663043693,2.90695,2121.7,2121.4,5.86]
[1617663044095,2.90695,2121.7,2121.3,2.90695]
[1617663044296,5.08145,2121.7,2121.5,5.67]
[1617663044496,0.13941176,2121.6,2121.5,5.67]
[1617663044696,0.13941176,2121.6,2120.7,5.93]
[1617663044896,0.13941176,2121.6,2119.8,5.15]
[1617663045096,0.13941176,2121.6,2121.5,0.27]
[1617663045295,0.13941176,2121.6,2120.8,5.77]
[1617663045496,0.13941176,2121.6,2120.5,5.91]
[1617663045696,0.13941176,2121.6,2119.9,37.66]
[1617663045697,0.13941176,2121.6,2121.5,0.43]
[1617663045897,0.13941176,2121.6,2121.1,2.90695]
[1617663046098,1.02579083,2121.6,2121.2,5.87]
[1617663046297,1.02579083,2121.6,2121.5,5.76]
[1617663046499,1.02579083,2121.6,2121.1,2.90695]
[1617663046698,1.02579083,2121.6,2121.3,5.86]
[1617663046899,1.02579083,2121.6,2121.5,5.86]
[1617663047096,1.02579083,2121.6,2121.2,5.92]
[1617663047298,1.02579083,2121.6,2121.4,5.77]
[1617663047498,0.88637907,2121.6,2121.5,5.9]
[1617663047698,3.79332907,2121.6,2121.2,5.71]
[1617663047898,3.79332907,2121.6,2121.1,2.90695]
[1617663048099,3.79332907,2121.6,2121.5,5.93]
[1617663048298,3.79332907,2121.6,2121.2,5.9]
[1617663048498,3.79332907,2121.6,2121.1,2.90695]
[1617663048698,3.79332907,2121.6,2121.5,5.88]
[1617663049098,3.79332907,2121.6,2121.1,2.90695]
[1617663049299,3.79332907,2121.6,2121.5,5.82]
[1617663049700,3.79332907,2121.6,2120.8,2.90695]
[1617663049900,3.79332907,2121.6,2121.5,5.84]
[1617663050301,0.88630403,2121.5,2120.9,3.72]
[1617663050501,0.88630403,2121.5,2120.8,2.90695]
[1617663050701,0.88630403,2121.5,2121.4,5.76]
[1617663051103,2.90695,2121.6,2120.9,5.86]
[1617663051303,2.90695,2121.6,2121.4,5.68]
[1617663051503,0.88632235,2121.5,2121.4,5.68]
[1617663051706,0.88632235,2121.5,2120.9,5.65]
[1617663051903,4.01491599,2121.6,2121.5,5.78]
[1617663052109,32.90695,2121.6,2121.5,5.78]
[1617663052307,2.90695,2121.6,2120.9,5.81]
[1617663052608,7.12232479,2121.6,2121.5,5.79]
[1617663052812,7.12232479,2121.6,2120.9,5.75]
[1617663053008,0.88611104,2121.1,2120.9,5.75]
[1617663053210,0.88612867,2121.0,2120.3,54.6962]
[1617663053409,0.88612867,2121.0,2120.9,5.79]
[1617663053811,0.88622452,2120.9,2120.4,5.77]
[1617663054010,0.88622452,2120.9,2120.2,0.09]
[1617663054210,0.88624342,2120.8,2120.5,5.7]
[1617663054610,0.88624342,2120.8,2120.2,5.93]
[1617663054809,0.88624342,2120.8,2120.6,5.9]
[1617663055212,2.90695,2121.0,2120.3,5.82]
[1617663055612,2.90695,2121.0,2120.7,5.75]
[1617663055811,2.90695,2121.0,2120.1,2.90695]
[1617663056012,2.90695,2121.0,2120.3,5.7]
[1617663056211,2.90695,2121.0,2120.8,5.9]
[1617663056412,2.90695,2121.0,2120.2,5.79]
[1617663056611,2.90695,2121.0,2120.4,5.81]
[1617663056812,2.90695,2121.0,2120.9,5.81]
[1617663057012,2.90695,2121.0,2120.2,5.88]
[1617663057215,2.90695,2121.0,2120.5,5.77]
[1617663057413,2.90695,2121.0,2120.9,5.93]
[1617663057614,2.90695,2121.0,2120.5,66.3323]
[1617663057813,1.41623,2121.5,2120.6,8.74695]
[1617663058016,72.03897355,2121.6,2120.9,5.86]
[1617663058214,72.03897355,2121.6,2120.5,66.3323]
[1617663058414,72.03897355,2121.6,2120.7,5.76]
[1617663058615,72.03897355,2121.6,2121.0,5.87]
[1617663058815,0.88519933,2121.5,2120.5,66.3323]
[1617663059016,0.88519933,2121.5,2120.8,5.7]
[1617663059218,0.88519933,2121.5,2120.7,5.84]
[1617663059219,0.88519933,2121.5,2121.1,5.74]
[1617663059416,0.88519933,2121.5,2120.5,66.3323]
[1617663059617,0.88519933,2121.5,2120.9,5.71]
[1617663059819,0.88519933,2121.5,2121.2,5.88]
[1617663060016,0.88519933,2121.5,2120.6,0.03]
[1617663060216,0.88522181,2121.4,2121.0,5.62]
[1617663060415,0.88522181,2121.4,2121.3,5.89]
[1617663060616,0.88522181,2121.4,2120.6,3.4]
[1617663060817,0.88522181,2121.4,2121.1,5.3]
[1617663061017,0.88522181,2121.4,2121.3,5.73]
[1617663061217,0.88518999,2121.5,2120.7,5.73]
[1617663061417,0.13944419,2121.3,2121.2,4.55]
[1617663061616,0.13944419,2121.3,2120.5,66.3323]
[1617663061817,2.90695,2120.6,2120.5,66.3323]
[1617663062018,2.90695,2120.6,2119.5,34.32]
[1617663062218,2.90695,2120.6,2120.5,5.68]
[1617663062419,2.90695,2120.6,2120.2,5.78]
[1617663062820,2.90695,2120.6,2120.5,5.82]
[1617663063019,2.90695,2120.6,2120.2,5.69]
[1617663063419,2.90695,2120.6,2120.5,5.67]
[1617663063620,2.90695,2120.6,2120.2,5.66]
[1617663063819,2.90695,2120.3,2120.2,5.66]
[1617663064020,2.90695,2120.3,2119.5,78.4524]
[1617663064219,2.90695,2120.3,2120.2,5.88]
[1617663067625,2.90695,2120.3,2120.2,4.8901]
[1617663068023,2.90695,2120.3,2119.5,2.90695]
[1617663068224,4.76895,2120.3,2120.2,0.66]
[1617663068624,4.76895,2120.3,2119.6,0.08]
[1617663068823,4.76895,2120.3,2119.5,2.90695]
[1617663068824,4.76895,2120.3,2120.2,5.75]
[1617663069223,4.76895,2120.3,2119.5,2.90695]
[1617663069224,4.76895,2120.3,2119.6,5.83]
[1617663069424,4.76895,2120.3,2120.2,5.66]
[1617663069827,4.76895,2120.3,2119.6,5.75]
[1617663070024,2.90695,2119.7,2119.6,5.75]
[1617663070227,5.70735,2119.7,2119.6,5.75]
[1617663074330,80.00255,2119.7,2119.6,5.75]
[1617663074730,5.70735,2119.7,2118.3,5.92]
[1617663074931,5.70735,2119.7,2118.5,57.7016]
[1617663075131,5.70735,2119.7,2119.6,5.9]
[1617663075332,5.70735,2119.7,2118.5,57.7016]
[1617663075530,5.70735,2119.7,2118.6,5.93]
[1617663075732,5.70735,2119.7,2119.6,5.8]
[1617663075930,5.70735,2119.7,2118.5,57.7016]
[1617663076130,2.8004,2119.7,2119.3,2.90695]
[1617663076330,31.41710636,2120.2,2119.6,5.74]
[1617663076530,31.41710636,2120.2,2119.4,3.92]
[1617663076931,31.41710636,2120.2,2119.7,5.79]
[1617663077131,31.41710636,2120.2,2119.3,2.90695]
[1617663077331,31.41710636,2120.2,2119.4,5.68]
[1617663077532,31.41710636,2120.2,2119.8,5.93]
[1617663077733,31.41710636,2120.2,2119.3,2.90695]
[1617663077935,31.41710636,2120.2,2119.4,5.89]
[1617663078133,2.90695,2119.5,2119.4,5.89]
[1617663078333,5.10235,2119.5,2119.4,5.89]
[1617663079239,5.10235,2119.5,2118.6,5.87]
[1617663079640,5.10235,2119.5,2119.4,5.93]
[1617663079841,5.10235,2119.5,2118.7,5.81]
[1617663080041,60.3252,2119.4,2118.7,5.81]
[1617663080241,2.90695,2118.8,2118.6,2.90695]
[1617663080442,4.89875,2118.8,2118.6,2.90695]
[1617663080640,4.89875,2118.8,2118.7,0.65]
[1617663086143,2.90695,2118.8,2118.7,0.65]
[1617663087746,69.8798,2119.8,2118.7,0.65]
[1617663088346,69.8798,2119.8,2119.3,2.90695]
[1617663088547,69.8798,2119.8,2119.4,5.68]
[1617663088746,30.0,2121.1,2119.4,5.68]
[1617663088946,69.3048,2120.8,2119.4,5.68]
[1617663089946,100.2461,2120.8,2119.4,5.68]
[1617663090146,99.3048,2120.8,2119.4,5.68]
[1617663090348,2.90695,2119.6,2119.4,5.68]
[1617663095755,4.70915,2119.6,2119.4,5.68]
[1617663097958,2.90695,2119.6,2119.4,5.68]
[1617663098760,2.90695,2119.6,2119.4,6.6189]
[1617663098961,2.90695,2119.6,2119.4,5.68]
[1617663107371,72.0559,2119.3,2119.1,5.85]
[1617663107570,74.5984,2119.3,2118.2,2.0]
[1617663107771,74.5984,2119.3,2119.2,5.65]
[1617663107971,2.5425,2119.3,2119.2,5.65]
[1617663108171,2.5425,2119.3,2117.4,65.188]
[1617663108371,59.4633,2119.2,2118.4,2.36]
[1617663108571,59.4633,2119.2,2118.5,2.90695]
[1617663108971,59.4633,2119.2,2118.5,8.75695]
[1617663110575,2.90695,2118.6,2118.5,8.75695]
[1617663110775,4.63045,2118.6,2118.5,8.75695]
[1617663113080,2.90695,2118.6,2118.5,8.75695]
[1617663115277,5.03385,2118.6,2118.5,8.75695]
[1617663119884,2.90695,2118.6,2118.5,8.75695]
[1617663126894,2.08126964,2119.5,2118.5,8.75695]
[1617663128197,2.08126964,2119.5,2118.5,38.75695]
[1617663128395,0.6637314,2119.5,2118.5,38.75695]
[1617663128595,0.88495776,2119.8,2118.9,55.1363]
[1617663128596,0.66368365,2119.6,2118.9,55.1363]
[1617663128796,2.90695,2119.6,2119.4,2.90695]
[1617663128995,2.90695,2119.6,2119.4,5.31005]
[1617663129194,2.90695,2119.6,2119.5,5.69]
[1617663134004,56.79345,2119.6,2119.0,5.75]
[1617663134206,56.79345,2119.6,2119.5,5.8]
[1617663134404,57.68096969,2119.6,2119.5,5.8]
[1617663134604,57.68096969,2119.6,2118.5,5.82]
[1617663134806,55.33301397,2119.6,2119.5,5.72]
[1617663135204,53.8865,2119.6,2119.4,5.84]
[1617663135405,53.8865,2119.6,2119.5,5.71]
[1617663135806,53.8865,2119.6,2119.4,5.67]
[1617663136004,53.8865,2119.6,2119.5,5.77]
[1617663136204,54.77398375,2119.6,2119.5,5.77]
[1617663136405,54.77398375,2119.6,2119.4,5.8]
[1617663136606,54.77398375,2119.6,2119.5,5.73]
[1617663136805,56.79345,2119.6,2119.5,5.73]
[1617663137005,56.79345,2119.6,2119.4,5.86]
[1617663137207,57.68129035,2119.6,2119.5,5.71]
[1617663137509,57.68129035,2119.6,2119.3,2.90695]
[1617663137707,0.17506224,2119.5,2119.4,5.77]
[1617663137908,0.66587901,2119.4,2119.3,2.90695]
[1617663138309,0.84091669,2119.5,2119.3,8.84695]
[1617663138708,0.66585445,2119.5,2119.3,8.84695]
[1617663138909,0.66585445,2119.5,2119.3,11.09075]
[1617663139511,57.45927094,2119.6,2119.3,11.09075]
[1617663140811,3.57277094,2119.6,2119.3,11.09075]
[1617663141014,2.90695,2119.6,2119.3,11.09075]
[1617663141212,2.90695,2119.6,2119.3,83.82095]
[1617663143316,0.66578218,2119.8,2119.3,83.82095]
[1617663144316,1.10957594,2120.3,2119.3,11.09075]
[1617663144317,0.66572134,2119.9,2119.3,11.09075]
[1617663144516,0.66572134,2119.9,2119.3,12.04695]
[1617663144718,0.66572134,2119.9,2119.8,58.7886]
[1617663144917,0.66572134,2119.9,2119.8,65.23465]
[1617663145122,0.88829155,2120.0,2119.8,71.10465]
[1617663145518,1.06325282,2120.0,2119.8,71.10465]
[1617663145718,1.06325282,2120.0,2119.8,70.14855]
[1617663146519,0.88831457,2119.9,2119.8,11.35995]
[1617663146719,0.88831457,2119.9,2119.8,8.77695]
[1617663146919,1.06331089,2119.9,2119.8,8.77695]
[1617663147319,1.28546587,2120.0,2119.8,8.77695]
[1617663147721,1.06336425,2119.9,2119.8,8.77695]
[1617663148122,0.17504206,2120.0,2119.8,8.77695]
[1617663148320,0.17504433,2119.9,2119.8,8.77695]
[1617663148721,1.28564611,2120.0,2119.8,8.77695]
[1617663149122,0.17504423,2119.9,2119.8,8.77695]
[1617663149721,1.28565087,2120.0,2119.8,8.77695]
[1617663150922,0.8884561,2119.9,2119.8,10.77165]
[1617663151822,0.17505223,2120.0,2119.8,10.77165]
[1617663152022,0.17499062,2119.9,2119.8,10.77165]
[1617663152423,0.88843005,2120.0,2119.8,10.77165]
[1617663152424,1.06392603,2120.0,2119.8,10.77165]
[1617663152725,0.88843134,2119.9,2119.8,10.77165]
[1617663153027,1.06392538,2120.0,2119.8,10.77165]
[1617663153426,0.88843043,2119.9,2119.8,10.77165]
[1617663154028,1.06392718,2120.0,2119.8,10.77165]
[1617663154428,0.88843807,2119.9,2119.8,10.77165]
[1617663154629,1.28609364,2120.0,2119.8,8.77695]
[1617663155029,0.17555466,2119.9,2119.8,8.77695]
[1617663155431,1.2861457,2120.0,2119.8,8.77695]
[1617663155833,0.17554804,2120.0,2119.8,8.77695]
[1617663156236,1.06399513,2119.9,2119.8,8.77695]
[1617663156434,0.17553202,2119.9,2119.8,8.77695]
[1617663156833,0.17551556,2120.0,2119.8,8.77695]
[1617663157233,0.88844417,2119.9,2119.8,8.77695]
[1617663158839,1.06370706,2120.0,2119.8,8.77695]
[1617663159037,1.06370706,2120.0,2119.8,10.55685]
[1617663159238,0.66603242,2119.9,2119.8,10.55685]
[1617663159637,0.66602587,2120.0,2119.8,40.55685]
[1617663160238,0.66599019,2120.1,2119.9,2.0]
[1617663160437,0.66599019,2120.1,2120.0,30.0]
[1617663160639,0.66597755,2120.2,2120.0,35.73]
[1617663161137,0.66597755,2120.2,2120.1,2.90695]
[1617663161538,0.66597755,2120.2,2120.1,8.74695]
[1617663163041,2.90695,2120.2,2120.1,8.74695]
[1617663168043,3.79497389,2120.2,2120.1,8.74695]
[1617663169247,2.90695,2120.2,2120.1,8.74695]
[1617663169646,3.79474583,2120.2,2120.1,8.74695]
[1617663170353,2.90695,2120.2,2120.1,8.74695]
[1617663173255,3.57271401,2120.2,2120.1,8.74695]
[1617663173455,3.57271401,2120.2,2120.1,75.73675]
[1617663173658,2.90695,2120.2,2120.1,75.73675]
[1617663173856,0.66575615,2120.3,2120.1,75.73675]
[1617663174856,0.66576178,2120.2,2120.1,75.73675]
[1617663175056,0.66576178,2120.2,2120.1,8.74695]
[1617663175258,3.57271178,2120.2,2120.1,8.74695]
[1617663175658,2.90695,2120.2,2120.1,8.74695]
[1617663175957,3.08282922,2120.2,2120.1,8.74695]
[1617663182060,3.74834756,2120.2,2120.1,8.74695]
[1617663182462,3.08282922,2120.2,2120.1,8.74695]
[1617663182660,3.74835023,2120.2,2120.1,8.74695]
[1617663183062,3.08282922,2120.2,2120.1,8.74695]
[1617663189771,75.0216076,2120.2,2120.1,8.74695]
[1617663190170,75.58621022,2120.2,2120.1,8.74695]
[1617663190570,75.58621022,2120.2,2120.1,5.84]
[1617663190770,4.53491022,2120.2,2120.1,5.84]
[1617663190970,3.64743184,2120.2,2119.6,5.9]
[1617663191371,3.08282922,2120.2,2120.1,0.12]
[1617663191570,3.08282922,2120.2,2119.7,5.84]
[1617663191969,3.08282922,2120.2,2119.4,8.74695]
[1617663191970,4.85138603,2120.2,2120.1,5.74]
[1617663192169,77.4366,2120.1,2119.8,5.06]
[1617663192570,77.4366,2120.1,2119.4,2.90695]
[1617663192770,1.10943102,2119.9,2119.6,5.89]
[1617663192970,3.63903102,2119.9,2119.5,3.97]
[1617663193171,0.88754557,2119.8,2119.4,2.90695]
[1617663193370,0.88754557,2119.8,2119.7,5.84]
[1617663193570,3.08391532,2119.8,2119.5,5.75]
[1617663193770,3.08391532,2119.8,2119.4,2.90695]
[1617663193970,3.08391532,2119.8,2119.7,5.8]
[1617663194171,0.66564992,2119.6,2119.5,5.67]
[1617663194371,0.66564992,2119.6,2119.4,2.90695]
[1617663194571,1.06486031,2119.7,2119.4,2.90695]
[1617663194771,1.06486031,2119.7,2119.5,5.69]
[1617663196974,76.6289,2119.6,2119.5,5.69]
[1617663197675,77.37070637,2119.6,2119.5,5.69]
[1617663201574,78.25870509,2119.6,2119.5,5.69]
[1617663201874,1.62980509,2119.6,2119.5,5.69]
[1617663202074,1.62980509,2119.6,2119.5,60.0632]
[1617663202278,0.88799872,2119.6,2119.5,60.0632]
[1617663203176,0.88799872,2119.6,2119.5,5.69]
[1617663203576,0.74189135,2119.6,2119.5,5.69]
[1617663206980,0.5647859,2119.6,2119.5,5.69]
[1617663210982,3.2173859,2119.6,2119.5,5.69]
[1617663211382,4.32787282,2119.6,2119.5,5.69]
[1617663211581,4.32787282,2119.6,2119.1,5.83]
[1617663211783,4.32787282,2119.6,2119.5,5.41]
[1617663211784,2.6526,2119.6,2119.5,5.41]
[1617663212184,4.59885641,2119.6,2119.2,5.89]
[1617663212384,4.59885641,2119.6,2119.5,5.8]
[1617663212787,2.6526,2119.6,2119.3,5.73]
[1617663212984,2.6526,2119.6,2119.0,3.49]
[1617663213185,5.43206418,2119.6,2119.5,5.38]
[1617663213385,5.43206418,2119.6,2119.4,5.54]
[1617663213588,5.43206418,2119.6,2119.1,3.66]
[1617663213589,2.90695,2119.5,2119.1,3.66]
[1617663213785,3.84775,2119.5,2118.5,2.90695]
[1617663213987,0.17856985,2119.4,2119.3,5.84]
[1617663214186,0.17856985,2119.4,2119.2,5.66]
[1617663214387,2.95822065,2119.4,2118.5,2.90695]
[1617663214585,2.95822065,2119.4,2119.3,5.9]
[1617663214786,4.07459383,2119.4,2118.6,5.75]
[1617663214988,67.3658,2118.9,2118.6,5.75]
[1617663215190,69.9196,2118.9,2118.5,2.90695]
[1617663215387,69.9196,2118.9,2118.7,5.77]
[1617663215589,2.90695,2118.8,2118.7,5.77]
[1617663215788,5.81822208,2118.8,2118.6,5.88]
[1617663215988,5.63938679,2118.8,2118.7,5.9]
[1617663216387,7.58881337,2118.8,2118.6,5.92]
[1617663216587,7.58881337,2118.8,2118.5,2.90695]
[1617663216787,5.63938679,2118.8,2118.7,5.77]
[1617663216987,5.63938679,2118.8,2118.6,5.7]
[1617663217190,5.63938679,2118.8,2118.5,2.90695]
[1617663217389,3.47622205,2118.8,2118.7,5.73]
[1617663217589,3.47622205,2118.8,2118.6,5.94]
[1617663217791,4.41132205,2118.8,2118.6,5.94]
[1617663217989,4.41132205,2118.8,2118.7,5.89]
[1617663218191,4.41132205,2118.8,2118.6,5.74]
[1617663218593,3.47622205,2118.8,2118.7,5.84]
[1617663218791,3.47622205,2118.8,2118.6,5.89]
[1617663219194,3.47622205,2118.8,2118.7,5.92]
[1617663219392,3.57284114,2118.8,2118.7,5.92]
[1617663219592,3.57284114,2118.8,2118.6,5.72]
[1617663221093,5.45964114,2118.8,2118.6,5.72]
[1617663221695,0.66590923,2118.7,2118.6,5.72]
[1617663222695,3.57286592,2118.8,2118.6,5.72]
[1617663223396,2.90695,2118.8,2118.6,5.72]
[1617663225698,3.57284711,2118.8,2118.6,5.72]
[1617663226403,2.90695,2118.8,2118.6,5.72]
[1617663227207,0.6657027,2118.7,2118.6,5.72]
[1617663228605,2.90695,2118.8,2118.6,5.72]
[1617663229706,3.57198007,2118.8,2118.6,5.72]
[1617663232708,4.51558007,2118.8,2118.6,5.72]
[1617663232908,0.6650471,2118.7,2118.6,5.72]
[1617663233311,3.57196911,2118.8,2118.6,5.72]
[1617663233710,2.90695,2118.8,2118.6,5.72]
[1617663236714,3.57195758,2118.8,2118.6,5.72]
[1617663237815,2.90695,2118.8,2118.6,5.72]
[1617663238418,3.5716888,2118.8,2118.6,5.72]
[1617663238615,6.1009888,2118.8,2118.6,5.72]
[1617663238816,6.1009888,2118.8,2117.9,5.81]
[1617663239222,78.6441,2118.2,2117.5,32.0]
[1617663239419,81.1257,2118.2,2118.0,5.92]
[1617663239820,2.90695,2118.1,2117.9,2.90695]
[1617663240422,2.90695,2118.1,2118.0,5.89]
[1617663242623,2.90695,2118.1,2116.7,5.81]
[1617663242823,69.5088,2117.3,2116.7,35.81]
[1617663243025,71.9965,2117.3,2116.7,30.0]
[1617663243424,71.9965,2117.3,2116.8,5.8]
[1617663243823,71.9965,2117.3,2117.2,2.90695]
[1617663244423,2.4877,2117.3,2117.2,8.79695]
[1617663244623,2.4877,2117.3,2117.2,5.89]
[1617663244824,2.4877,2117.3,2117.2,4.9339]
[1617663245024,2.4877,2117.3,2115.8,5.66]
[1617663245225,2.4877,2117.3,2115.8,35.66]
[1617663245426,2.4877,2117.3,2117.2,5.89]
[1617663245625,2.4877,2117.3,2115.8,35.79]
[1617663245825,2.4877,2117.3,2116.7,2.90695]
[1617663246028,2.4877,2117.3,2117.2,5.95]
[1617663246425,2.4877,2117.3,2116.8,3.35]
[1617663246628,2.4877,2117.3,2117.2,5.7]
[1617663246925,2.4877,2117.3,2116.8,5.7]
[1617663247327,2.4877,2117.3,2117.2,5.94]
[1617663247527,2.4877,2117.3,2116.8,5.66]
[1617663247927,2.90695,2116.9,2116.7,2.90695]
[1617663248326,2.90695,2116.9,2116.8,5.77]
[1617663249529,60.30635,2116.9,2116.8,5.77]
[1617663252037,2.90695,2116.9,2116.8,5.77]
[1617663253638,3.83855,2116.9,2116.8,5.77]
[1617663254039,3.83855,2116.9,2116.1,2.90695]
[1617663254239,5.76525,2116.9,2116.1,2.90695]
[1617663254439,5.76525,2116.9,2116.8,5.83]
[1617663254640,5.76525,2116.9,2116.1,2.90695]
[1617663255039,5.76525,2116.9,2116.8,5.81]
[1617663255239,5.76525,2116.9,2116.2,5.68]
[1617663255638,5.76525,2116.9,2116.8,5.76]
[1617663255839,5.76525,2116.9,2115.5,3.31]
[1617663256040,1.9267,2116.9,2115.8,2.90695]
[1617663256239,1.9267,2116.9,2116.8,3.7984]
[1617663256640,1.9267,2116.9,2115.8,2.90695]
[1617663256842,1.9267,2116.9,2116.8,5.34]
[1617663257041,2.869,2116.9,2116.8,5.34]
[1617663257241,2.869,2116.9,2115.8,2.90695]
[1617663257441,2.869,2116.9,2116.8,5.85]
[1617663257641,4.869,2116.9,2116.8,5.85]
[1617663257841,4.869,2116.9,2115.8,2.90695]
[1617663258041,73.96625,2115.9,2115.8,2.90695]
[1617663258241,75.73145,2115.9,2115.8,2.90695]
[1617663258441,75.73145,2115.9,2115.8,8.82695]
[1617663263044,76.67575,2115.9,2115.8,8.82695]
[1617663263246,75.73145,2115.9,2115.8,8.82695]
[1617663264746,75.73145,2115.9,2115.8,5.92]
[1617663265147,75.73145,2115.9,2115.0,5.91]
[1617663265347,75.73145,2115.9,2115.8,5.95]